bitfinex-derivatives/quotes_BTCF0:USTF0_20230402
["timestamp","ask_amount","ask_price","bid_price","bid_amount"]
[1680432473987,0.003,28377.0,28376.0,0.05]
[1680432474575,0.3007,28381.0,28376.0,0.3507]
[1680432474772,0.3007,28384.0,28376.0,0.3507]
[1680432475476,0.05,28383.0,28376.0,0.3507]
[1680432475675,0.003,28377.0,28376.0,0.3537]
[1680432475875,0.05,28383.0,28377.0,0.05]
[1680432476077,0.00365806,28382.0,28377.0,0.05]
[1680432476382,0.3037,28384.0,28377.0,0.05]
[1680432476583,0.3007,28384.0,28377.0,0.05]
[1680432477580,0.003,28382.0,28377.0,0.056]
[1680432478681,0.3037,28384.0,28379.0,0.3007]
[1680432478877,0.3037,28384.0,28380.0,0.05]
[1680432479076,0.003,28382.0,28380.0,0.05]
[1680432479677,0.003,28384.0,28380.0,0.05]
[1680432479986,0.3007,28388.0,28383.0,0.3007]
[1680432480285,0.3007,28388.0,28384.0,0.05]
[1680432481680,0.003,28384.0,28383.0,0.3007]
[1680432482188,0.3027,28388.0,28384.0,0.006]
[1680432482381,0.3027,28388.0,28384.0,0.056]
[1680432482686,0.3007,28388.0,28384.0,0.05]
[1680432483075,0.3007,28388.0,28384.0,0.056]
[1680432483287,0.3027,28388.0,28384.0,0.006]
[1680432486092,0.3007,28388.0,28383.0,0.3007]
[1680432486282,0.3017,28388.0,28384.0,0.055]
[1680432487388,0.3017,28388.0,28384.0,0.005]
[1680432491296,0.05,28387.0,28384.0,0.005]
[1680432492295,0.055,28387.0,28384.0,0.001]
[1680432492793,0.3007,28385.0,28384.0,0.001]
[1680432493690,0.3007,28385.0,28380.0,0.05]
[1680432493988,0.3007,28385.0,28384.0,0.001]
[1680432494189,0.3057,28385.0,28384.0,0.001]
[1680432494596,0.3007,28385.0,28380.0,0.052]
[1680432494792,0.05,28387.0,28380.0,0.052]
[1680432494997,0.3007,28388.0,28380.0,0.05]
[1680432495198,0.3007,28388.0,28384.0,0.002]
[1680432495396,3.77,28387.0,28384.0,0.002]
[1680432495593,0.05,28386.0,28384.0,0.002]
[1680432496292,0.005,28385.0,28380.0,0.051]
[1680432496689,0.061,28386.0,28380.0,0.05]
[1680432497294,0.005,28385.0,28380.0,0.051]
[1680432497891,0.05,28386.0,28380.0,0.05]
[1680432498093,0.18157466,28386.0,28380.0,0.05]
[1680432498298,0.18157466,28386.0,28380.0,0.09217468]
[1680432498697,0.48227466,28386.0,28380.0,0.09217468]
[1680432498900,0.48227466,28386.0,28380.0,0.04217468]
[1680432499204,0.005,28385.0,28380.0,0.04317468]
[1680432499501,0.005,28385.0,28380.0,0.001]
[1680432499701,0.48227466,28386.0,28379.0,0.04217468]
[1680432500291,0.48227466,28386.0,28380.0,0.04217468]
[1680432500495,0.005,28385.0,28380.0,0.04317468]
[1680432500701,0.005,28385.0,28380.0,0.39387468]
[1680432500898,0.17057466,28386.0,28380.0,0.34287468]
[1680432501091,0.18157466,28386.0,28380.0,0.34287468]
[1680432501702,0.13157466,28386.0,28380.0,0.34287468]
[1680432501900,0.43227466,28386.0,28380.0,0.34287468]
[1680432502102,0.42127466,28386.0,28380.0,0.34287468]
[1680432502394,0.055,28385.0,28380.0,0.34387468]
[1680432502596,0.43227466,28386.0,28380.0,0.34287468]
[1680432502992,0.05,28385.0,28380.0,0.34287468]
[1680432503601,0.43227466,28386.0,28380.0,0.34287468]
[1680432503803,0.13157466,28386.0,28382.0,0.05]
[1680432504795,0.12057466,28386.0,28382.0,0.05]
[1680432505099,0.005,28385.0,28382.0,0.05]
[1680432505297,0.12057466,28386.0,28382.0,0.05]
[1680432505493,0.05,28385.0,28381.0,0.04217468]
[1680432505806,0.05,28385.0,28380.0,0.34287468]
[1680432506107,0.18157466,28386.0,28380.0,0.34287468]
[1680432506298,0.17057466,28386.0,28380.0,0.34287468]
[1680432506498,0.005,28385.0,28381.0,0.001]
[1680432506702,0.005,28385.0,28381.0,0.051]
[1680432507001,0.005,28385.0,28381.0,0.09317468]
[1680432507399,0.055,28385.0,28381.0,0.04317468]
[1680432507599,0.005,28385.0,28381.0,0.04217468]
[1680432507800,0.055,28385.0,28381.0,0.09217468]
[1680432508004,0.005,28385.0,28381.0,0.09317468]
[1680432511399,0.005,28385.0,28383.0,0.3007]
[1680432511599,0.005,28385.0,28384.0,0.05]
[1680432512613,0.005,28385.0,28384.0,0.051]
[1680432516902,0.005,28385.0,28384.0,0.39387468]
[1680432521509,0.005,28385.0,28384.0,0.3517]
[1680432521811,0.7996,28392.0,28385.0,0.05]
[1680432522020,0.42725739,28393.0,28389.0,0.3007]
[1680432522311,0.12655739,28393.0,28390.0,0.05]
[1680432522609,0.12655739,28394.0,28390.0,0.05]
[1680432522920,0.12655739,28394.0,28393.0,0.05]
[1680432523309,0.12655739,28395.0,28393.0,0.05]
[1680432523505,0.42725739,28396.0,28392.0,0.3007]
[1680432523714,0.027,28394.0,28393.0,0.001]
[1680432523915,0.027,28394.0,28393.0,0.051]
[1680432524315,0.027,28395.0,28393.0,0.051]
[1680432524518,0.027,28395.0,28393.0,0.001]
[1680432524718,0.027,28394.0,28393.0,0.001]
[1680432524913,0.027,28394.0,28393.0,0.051]
[1680432525315,0.027,28394.0,28393.0,0.05441081]
[1680432526413,0.027,28395.0,28393.0,0.05441081]
[1680432526815,0.027,28394.0,28393.0,0.05441081]
[1680432527113,0.027,28394.0,28393.0,0.00441081]
[1680432527413,0.027,28395.0,28393.0,0.00441081]
[1680432527822,0.027,28394.0,28393.0,0.00441081]
[1680432529515,0.027,28395.0,28393.0,0.00441081]
[1680432529720,0.027,28395.0,28393.0,0.05441081]
[1680432529915,0.027,28394.0,28393.0,0.05441081]
[1680432530417,0.027,28395.0,28393.0,0.05441081]
[1680432530820,0.12655739,28398.0,28393.0,0.05341081]
[1680432531124,0.027,28394.0,28393.0,0.05441081]
[1680432531523,0.027,28394.0,28393.0,0.00441081]
[1680432532628,0.027,28395.0,28393.0,0.00441081]
[1680432533127,0.027,28394.0,28393.0,0.00441081]
[1680432533424,0.17655739,28398.0,28393.0,0.00341081]
[1680432533425,0.05,28397.0,28393.0,0.00341081]
[1680432533614,0.027,28395.0,28393.0,0.00441081]
[1680432534020,0.3007,28396.0,28393.0,0.00441081]
[1680432534225,0.027,28394.0,28393.0,0.00441081]
[1680432535317,0.077,28395.0,28393.0,0.00441081]
[1680432535523,0.027,28395.0,28393.0,0.00441081]
[1680432535831,0.027,28394.0,28393.0,0.00441081]
[1680432536329,0.077,28395.0,28393.0,0.00441081]
[1680432536719,0.027,28394.0,28393.0,0.00441081]
[1680432538028,0.027,28395.0,28393.0,0.00441081]
[1680432538328,0.05,28397.0,28393.0,0.00341081]
[1680432538528,0.027,28394.0,28393.0,0.00441081]
[1680432538930,0.027,28395.0,28393.0,0.00441081]
[1680432539427,0.027,28394.0,28393.0,0.00441081]
[1680432540129,0.027,28395.0,28393.0,0.00441081]
[1680432541223,0.05,28397.0,28393.0,0.00341081]
[1680432541429,0.027,28394.0,28393.0,0.00441081]
[1680432541626,0.027,28395.0,28393.0,0.00441081]
[1680432542129,0.05,28397.0,28393.0,0.00341081]
[1680432542334,0.027,28397.0,28393.0,0.00441081]
[1680432542928,0.027,28395.0,28393.0,0.00441081]
[1680432543931,0.027,28397.0,28393.0,0.00441081]
[1680432544432,0.027,28395.0,28393.0,0.00441081]
[1680432544834,0.05,28398.0,28393.0,0.00341081]
[1680432545135,0.027,28397.0,28393.0,0.00441081]
[1680432545332,0.05,28398.0,28392.0,0.3007]
[1680432545533,0.027,28395.0,28394.0,0.0042341]
[1680432545936,0.027,28395.0,28393.0,0.051]
[1680432546134,0.027,28395.0,28394.0,0.00423392]
[1680432546933,0.05,28398.0,28394.0,0.00423392]
[1680432547137,0.027,28397.0,28394.0,0.00423392]
[1680432547335,0.05,28398.0,28393.0,0.05]
[1680432547536,0.027,28395.0,28394.0,0.001]
[1680432547930,0.077,28398.0,28394.0,0.001]
[1680432548636,0.027,28395.0,28394.0,0.001]
[1680432549039,0.027,28395.0,28394.0,0.00522854]
[1680432550238,0.077,28398.0,28394.0,0.00522854]
[1680432550441,0.077,28398.0,28394.0,0.001]
[1680432550641,0.027,28395.0,28394.0,0.001]
[1680432551038,0.027,28395.0,28394.0,0.00522804]
[1680432551539,0.077,28398.0,28394.0,0.00522804]
[1680432551738,0.077,28398.0,28394.0,0.001]
[1680432551935,0.027,28395.0,28394.0,0.001]
[1680432552337,0.027,28395.0,28394.0,0.00522778]
[1680432553039,0.3507,28398.0,28394.0,0.00422778]
[1680432553339,0.3777,28398.0,28394.0,0.001]
[1680432553542,0.024,28395.0,28394.0,0.001]
[1680432554037,0.3777,28398.0,28393.0,0.3007]
[1680432554244,0.3777,28398.0,28384.0,0.3007]
[1680432554245,0.3007,28394.0,28384.0,0.3007]
[1680432554436,0.3007,28389.0,28385.0,0.05]
[1680432554635,0.05,28388.0,28385.0,0.05]
[1680432554837,0.05,28388.0,28384.0,0.3007]
[1680432555041,0.3007,28389.0,28384.0,0.3007]
[1680432555239,0.01682224,28387.0,28384.0,0.3007]
[1680432555441,0.3007,28389.0,28384.0,0.3007]
[1680432555836,0.01681971,28388.0,28384.0,0.3007]
[1680432556942,0.01981971,28388.0,28384.0,0.3007]
[1680432557837,0.05,28387.0,28384.0,0.3007]
[1680432558441,0.06981971,28388.0,28384.0,0.3007]
[1680432558642,0.01981971,28388.0,28384.0,0.3007]
[1680432559036,0.01681971,28388.0,28384.0,0.3007]
[1680432559235,0.051,28387.0,28384.0,0.3007]
[1680432559541,0.001,28387.0,28384.0,0.3007]
[1680432559734,0.05,28387.0,28381.0,0.34291493]
[1680432559937,0.3007,28386.0,28381.0,0.34291493]
[1680432561945,0.05,28385.0,28381.0,0.34291493]
[1680432562142,0.05,28385.0,28378.0,0.34461493]
[1680432562342,0.05,28385.0,28379.0,0.04221493]
[1680432562644,0.05,28385.0,28380.0,0.05]
[1680432562836,0.05,28385.0,28379.0,0.05]
[1680432563232,0.053,28385.0,28379.0,0.05]
[1680432564245,0.053,28385.0,28378.0,0.34461493]
[1680432564646,0.053,28385.0,28378.0,0.04221493]
[1680432565148,0.05,28385.0,28378.0,0.04221493]
[1680432565445,0.053,28385.0,28378.0,0.04221493]
[1680432566143,0.003,28385.0,28378.0,0.09221493]
[1680432566745,0.3007,28383.0,28377.0,0.04221493]
[1680432566940,0.05,28382.0,28377.0,0.05]
[1680432567439,0.3007,28383.0,28377.0,0.05]
[1680432568039,0.3017,28383.0,28377.0,0.05]
[1680432568445,0.3007,28383.0,28377.0,0.05]
[1680432568646,0.3017,28383.0,28377.0,0.05]
[1680432570246,0.01812625,28382.0,28377.0,0.05]
[1680432571649,0.01912625,28382.0,28377.0,0.05]
[1680432572751,0.01912625,28382.0,28376.0,0.3007]
[1680432573653,0.05,28381.0,28376.0,0.3007]
[1680432574051,0.06912625,28382.0,28376.0,0.3007]
[1680432574252,0.01912625,28382.0,28376.0,0.3007]
[1680432574448,0.01812625,28382.0,28376.0,0.3007]
[1680432574649,0.002,28381.0,28377.0,0.05]
[1680432574851,0.002,28381.0,28379.0,0.3007]
[1680432575055,0.01912625,28382.0,28380.0,0.05]
[1680432575549,0.002,28381.0,28380.0,0.05]
[1680432577056,0.01912625,28382.0,28379.0,0.3007]
[1680432577454,0.002,28381.0,28379.0,0.3007]
[1680432578160,0.01912625,28382.0,28379.0,0.3007]
[1680432578546,0.002,28381.0,28379.0,0.3007]
[1680432579051,0.01912625,28382.0,28379.0,0.3007]
[1680432580261,0.002,28381.0,28379.0,0.3007]
[1680432581058,0.01912625,28382.0,28379.0,0.3007]
[1680432581457,0.002,28381.0,28379.0,0.3007]
[1680432581960,0.01912625,28382.0,28379.0,0.3007]
[1680432582659,0.01912625,28382.0,28376.0,0.3007]
[1680432583159,0.002,28381.0,28376.0,0.3007]
[1680432583361,0.052,28381.0,28376.0,0.3007]
[1680432583556,0.01912625,28382.0,28376.0,0.3007]
[1680432584260,0.01812625,28382.0,28376.0,0.3007]
[1680432584456,0.002,28381.0,28376.0,0.3007]
[1680432584656,0.05,28381.0,28376.0,0.3007]
[1680432584961,0.01813112,28380.0,28376.0,0.3007]
[1680432586263,0.02013112,28380.0,28376.0,0.3007]
[1680432589766,0.02013112,28380.0,28374.0,0.34291493]
[1680432590068,0.02013112,28380.0,28375.0,0.05]
[1680432592274,0.01813112,28380.0,28375.0,0.05]
[1680432592471,0.02013112,28380.0,28375.0,0.05]
[1680432594370,0.02013112,28380.0,28375.0,0.09221493]
[1680432596468,0.02013112,28380.0,28376.0,0.04221493]
[1680432596672,0.02013112,28380.0,28378.0,0.3007]
[1680432596969,0.02013112,28380.0,28379.0,0.05]
[1680432597767,0.01813112,28380.0,28379.0,0.05]
[1680432598069,0.002,28380.0,28379.0,0.05]
[1680432599274,0.003,28380.0,28379.0,0.05]
[1680432600175,0.0211329,28380.0,28379.0,0.05]
[1680432600972,0.0201329,28380.0,28379.0,0.05]
[1680432601372,0.0211329,28380.0,28379.0,0.05]
[1680432604465,0.0211329,28380.0,28379.0,0.09221493]
[1680432604682,0.0211329,28380.0,28379.0,0.04221493]
[1680432605469,0.0211329,28380.0,28379.0,0.09221493]
[1680432606278,0.0211329,28380.0,28379.0,0.04221493]
[1680432606777,0.0211329,28380.0,28379.0,0.04199116]
[1680432608176,0.0211329,28380.0,28379.0,0.09199116]
[1680432608579,0.0211329,28380.0,28379.0,0.04199116]
[1680432608881,0.0211329,28380.0,28379.0,0.09199116]
[1680432609873,0.0211329,28380.0,28379.0,0.04199116]
[1680432612077,0.0211329,28380.0,28378.0,0.6014]
[1680432617776,0.26080041,28385.0,28379.0,0.05]
[1680432618082,0.12655739,28386.0,28384.0,0.3007]
[1680432618886,0.003,28385.0,28384.0,0.3007]
[1680432619484,0.12655739,28386.0,28384.0,0.3007]
[1680432619681,0.009,28386.0,28384.0,0.3007]
[1680432620784,0.12655739,28387.0,28384.0,0.3007]
[1680432620785,0.003,28385.0,28384.0,0.3007]
[1680432621183,0.12655739,28387.0,28384.0,0.3007]
[1680432621383,0.009,28386.0,28384.0,0.3007]
[1680432621788,0.003,28385.0,28384.0,0.3007]
[1680432622383,0.009,28386.0,28384.0,0.3007]
[1680432623788,0.42725739,28388.0,28384.0,0.3007]
[1680432623988,0.003,28385.0,28384.0,0.3007]
[1680432624187,0.42725739,28388.0,28384.0,0.3007]
[1680432624390,0.009,28386.0,28384.0,0.3007]
[1680432624790,0.003,28385.0,28384.0,0.3007]
[1680432625186,0.42725739,28388.0,28384.0,0.3007]
[1680432625392,0.009,28386.0,28384.0,0.3007]
[1680432626295,0.009,28386.0,28385.0,0.05]
[1680432626589,0.00611547,28387.0,28385.0,0.05]
[1680432626995,0.009,28386.0,28385.0,0.05]
[1680432627487,0.3025,28391.0,28385.0,0.05]
[1680432627488,0.016,28387.0,28385.0,0.05]
[1680432627685,0.016,28387.0,28386.0,0.3007]
[1680432627885,0.42905739,28391.0,28386.0,0.3007]
[1680432628196,0.42905739,28391.0,28390.0,0.3007]
[1680432628386,0.12655739,28391.0,28390.0,0.3007]
[1680432628588,0.12655739,28391.0,28386.0,0.3007]
[1680432629094,0.12655739,28391.0,28389.0,0.3007]
[1680432629593,0.14955739,28391.0,28389.0,0.3007]
[1680432629989,0.12655739,28391.0,28389.0,0.3007]
[1680432630193,0.14955739,28391.0,28389.0,0.3007]
[1680432630797,0.05,28390.0,28389.0,0.3007]
[1680432630991,0.05,28390.0,28387.0,0.3007]
[1680432631192,0.14955739,28391.0,28387.0,0.3007]
[1680432632293,0.12655739,28391.0,28387.0,0.3007]
[1680432632601,0.05,28390.0,28387.0,0.3007]
[1680432633189,0.45025739,28391.0,28387.0,0.3007]
[1680432633789,0.066,28390.0,28387.0,0.3007]
[1680432634799,0.19255739,28390.0,28387.0,0.3007]
[1680432635510,0.17655739,28390.0,28387.0,0.3007]
[1680432636008,0.17655739,28390.0,28382.0,0.3007]
[1680432636407,0.20355739,28390.0,28382.0,0.3007]
[1680432636904,0.19955739,28390.0,28382.0,0.3007]
[1680432637307,0.20355739,28390.0,28382.0,0.3007]
[1680432638402,0.17655739,28390.0,28382.0,0.3007]
[1680432638610,0.19255739,28390.0,28382.0,0.3007]
[1680432638911,0.20335281,28390.0,28383.0,0.05]
[1680432639408,0.19235281,28390.0,28383.0,0.05]
[1680432640410,0.14255739,28390.0,28383.0,0.05]
[1680432642715,0.00605343,28389.0,28383.0,0.05]
[1680432642912,0.05,28388.0,28383.0,0.05]
[1680432643405,0.05605343,28389.0,28383.0,0.05]
[1680432644407,0.003,28388.0,28383.0,0.05]
[1680432644606,0.053,28388.0,28383.0,0.05]
[1680432644812,0.01505343,28389.0,28383.0,0.05]
[1680432645612,0.00605343,28389.0,28383.0,0.05]
[1680432645910,0.003,28388.0,28383.0,0.05]
[1680432646112,0.05,28388.0,28383.0,0.05]
[1680432646616,0.06505343,28389.0,28383.0,0.05]
[1680432647513,0.06505343,28389.0,28382.0,0.3007]
[1680432647708,0.01505343,28389.0,28383.0,0.05]
[1680432647907,0.003,28388.0,28383.0,0.05]
[1680432648209,0.053,28388.0,28383.0,0.05]
[1680432648407,0.003,28388.0,28383.0,0.05]
[1680432648707,0.00605343,28389.0,28383.0,0.05]
[1680432648907,0.01505343,28389.0,28383.0,0.05]
[1680432649215,0.00605343,28389.0,28383.0,0.05]
[1680432649414,0.003,28388.0,28383.0,0.05]
[1680432649616,0.053,28388.0,28383.0,0.05]
[1680432649917,0.003,28388.0,28383.0,0.05]
[1680432650115,0.3007,28385.0,28381.0,0.3007]
[1680432650309,0.05,28384.0,28381.0,0.3007]
[1680432651015,0.05,28384.0,28381.0,0.3037]
[1680432651514,0.052,28384.0,28381.0,0.3037]
[1680432651815,0.002,28384.0,28381.0,0.3037]
[1680432657123,0.001,28384.0,28381.0,0.3037]
[1680432657316,0.051,28384.0,28381.0,0.3037]
[1680432657621,0.00623958,28383.0,28381.0,0.3037]
[1680432659624,0.00823958,28383.0,28381.0,0.3037]
[1680432684134,0.00823958,28383.0,28381.0,0.30346863]
[1680432686243,0.00623958,28383.0,28381.0,0.30046863]
[1680432686449,0.00723958,28383.0,28381.0,0.30346863]
[1680432686741,0.00627062,28382.0,28381.0,0.30346863]
[1680432688645,0.00627062,28382.0,28381.0,0.30046863]
[1680432688948,0.00827062,28382.0,28381.0,0.30346863]
[1680432689147,0.002,28382.0,28381.0,0.30346863]
[1680432689447,0.00827062,28382.0,28381.0,0.30346863]
[1680432689644,0.002,28382.0,28381.0,0.30346863]
[1680432693546,0.002,28382.0,28381.0,0.003]
[1680432702447,0.00827062,28382.0,28381.0,0.003]
[1680432719670,0.00727062,28382.0,28381.0,0.003]
[1680432728871,0.00727062,28382.0,28381.0,0.00282742]
[1680432746288,0.13382801,28382.0,28381.0,0.00282742]
[1680432746790,0.00727062,28382.0,28381.0,0.00282742]
[1680432755900,0.00727062,28382.0,28381.0,0.30352742]
[1680432767813,0.00727062,28382.0,28381.0,0.34578961]
[1680432769208,0.001,28382.0,28381.0,0.34578961]
[1680432773419,0.001,28382.0,28381.0,0.30352742]
[1680432773618,0.001,28382.0,28381.0,0.34578961]
[1680432775012,0.12655739,28389.0,28382.0,0.05]
[1680432775205,0.12655739,28389.0,28388.0,0.3007]
[1680432775411,0.12655739,28389.0,28387.0,0.3007]
[1680432777019,0.15355739,28389.0,28387.0,0.3007]
[1680432777525,0.00608445,28388.0,28387.0,0.3007]
[1680432778919,0.00908445,28388.0,28387.0,0.3007]
[1680432791030,0.00908445,28388.0,28384.0,0.3007]
[1680432792932,0.00608445,28388.0,28384.0,0.3007]
[1680432793137,0.00908445,28388.0,28384.0,0.3007]
[1680432793326,0.003,28388.0,28384.0,0.3007]
[1680432793527,0.00611547,28387.0,28384.0,0.3007]
[1680432794237,0.00611547,28387.0,28385.0,0.05]
[1680432794737,0.00711547,28387.0,28385.0,0.05]
[1680432795032,0.00611547,28387.0,28385.0,0.05]
[1680432795233,0.001,28387.0,28385.0,0.004]
[1680432795434,0.001,28387.0,28385.0,0.054]
[1680432796733,0.001,28387.0,28385.0,0.004]
[1680432806653,0.12655739,28389.0,28384.0,0.3007]
[1680432806861,0.016,28387.0,28384.0,0.3007]
[1680432807247,0.003,28387.0,28384.0,0.3007]
[1680432807453,0.0061465,28386.0,28384.0,0.3007]
[1680432809457,0.0071465,28386.0,28384.0,0.3047]
[1680432809655,0.0061465,28386.0,28384.0,0.3007]
[1680432809857,0.0071465,28386.0,28384.0,0.3047]
[1680432810050,0.001,28386.0,28384.0,0.3047]
[1680432822469,0.00617752,28385.0,28384.0,0.3047]
[1680432824368,0.00617752,28385.0,28384.0,0.3007]
[1680432824568,0.00817752,28385.0,28384.0,0.3047]
[1680432824768,0.00817752,28385.0,28384.0,0.004]
[1680432824968,0.00817752,28385.0,28384.0,0.3047]
[1680432828875,0.00817752,28385.0,28384.0,0.30452127]
[1680432836377,0.00817752,28385.0,28384.0,0.34678346]
[1680432840183,0.00817752,28385.0,28384.0,0.64748346]
[1680432840477,0.00817752,28385.0,28384.0,0.60522127]
[1680432840683,0.12655739,28391.0,28385.0,0.05]
[1680432840979,0.12655739,28391.0,28390.0,0.3007]
[1680432842477,0.14855739,28391.0,28390.0,0.3017]
[1680432844084,0.022,28391.0,28390.0,0.3017]
[1680432850987,0.022,28391.0,28390.0,0.001]
[1680432851187,0.022,28391.0,28390.0,0.3017]
[1680432868903,0.022,28391.0,28390.0,0.001]
[1680432870200,0.022,28391.0,28390.0,0.3017]
[1680432871003,0.022,28391.0,28390.0,0.001]
[1680432871204,0.022,28391.0,28390.0,0.6024]
[1680432878707,0.299,28390.0,28386.0,0.34296212]
[1680432878909,0.3007,28388.0,28386.0,0.04226212]
[1680432879216,0.3007,28388.0,28381.0,0.4061367]
[1680432879217,0.3007,28388.0,28381.0,0.34296212]
[1680432879413,0.05,28387.0,28381.0,0.34296212]
[1680432880309,0.23109416,28387.0,28381.0,0.34296212]
[1680432881010,0.23209416,28387.0,28381.0,0.34296212]
[1680432881415,0.25309416,28387.0,28381.0,0.34296212]
[1680432881905,0.25309416,28387.0,28381.0,0.3007]
[1680432882105,0.25309416,28387.0,28381.0,0.34296212]
[1680432882509,0.25309416,28387.0,28381.0,0.3007]
[1680432884008,0.022,28387.0,28381.0,0.3007]
[1680432887114,0.022,28387.0,28382.0,0.05]
[1680432887514,0.022,28387.0,28384.0,0.3007]
[1680432887714,0.022,28387.0,28385.0,0.05]
[1680432888119,0.022,28387.0,28384.0,0.3007]
[1680432889320,0.022,28387.0,28385.0,0.3507]
[1680432889622,0.022,28387.0,28386.0,0.05]
[1680432890417,0.009,28387.0,28386.0,0.05]
[1680432891017,0.002,28387.0,28386.0,0.05]
[1680432893026,0.002,28387.0,28385.0,0.3507]
[1680432893325,0.002,28387.0,28386.0,0.3507]
[1680432893624,0.002,28387.0,28386.0,0.05]
[1680432893819,0.002,28387.0,28386.0,0.3507]
[1680432895524,0.05,28390.0,28386.0,0.3507]
[1680432895723,0.002,28387.0,28386.0,0.3507]
[1680432895924,0.002,28387.0,28386.0,0.6514]
[1680432897020,0.002,28387.0,28386.0,0.6014]
[1680432904926,0.002,28387.0,28386.0,0.3007]
[1680432909435,0.002,28387.0,28385.0,0.3007]
[1680432911543,0.002,28387.0,28382.0,0.34296212]
[1680432913543,0.3507,28391.0,28382.0,0.34296212]
[1680432913735,0.002,28387.0,28382.0,0.34296212]
[1680432914627,0.052,28387.0,28382.0,0.34296212]
[1680432915033,0.002,28387.0,28382.0,0.3007]
[1680432915437,0.002,28387.0,28382.0,0.34296212]
[1680432915834,0.002,28387.0,28382.0,0.3007]
[1680432916043,0.002,28387.0,28382.0,0.34296212]
[1680432916340,0.052,28387.0,28382.0,0.3007]
[1680432916740,0.052,28387.0,28381.0,0.04226212]
[1680432917141,0.002,28387.0,28381.0,0.04226212]
[1680432917337,0.3007,28385.0,28380.0,0.09226212]
[1680432917744,0.052,28387.0,28380.0,0.04226212]
[1680432919842,0.052,28387.0,28381.0,0.04226212]
[1680432920246,0.3007,28385.0,28380.0,0.09226212]
[1680432920446,0.05,28384.0,28380.0,0.09226212]
[1680432920645,0.05,28384.0,28380.0,0.05]
[1680432920950,6.206e-05,28383.0,28379.0,0.34296212]
[1680432921245,6.206e-05,28383.0,28380.0,0.05]
[1680432921639,0.3007,28385.0,28380.0,0.05]
[1680432921847,0.3007,28385.0,28380.0,0.09226212]
[1680432922245,0.3007,28385.0,28380.0,0.04226212]
[1680432922643,0.001,28384.0,28380.0,0.04226212]
[1680432922843,0.051,28384.0,28380.0,0.04226212]
[1680432923043,6.206e-05,28383.0,28380.0,0.04226212]
[1680432924139,0.00106206,28383.0,28380.0,0.04226212]
[1680432927050,0.00106206,28383.0,28380.0,0.09226212]
[1680432927851,0.00106206,28383.0,28380.0,0.04226212]
[1680432929060,0.00106206,28383.0,28379.0,0.34296212]
[1680432929758,0.00106206,28383.0,28380.0,0.04226212]
[1680432929958,0.00106206,28383.0,28380.0,0.09226212]
[1680432930360,0.00106206,28383.0,28380.0,0.04226212]
[1680432930558,0.00106206,28383.0,28379.0,0.34296212]
[1680432931258,6.206e-05,28383.0,28379.0,0.34296212]
[1680432931557,6.206e-05,28383.0,28380.0,0.05]
[1680432931558,0.00106206,28383.0,28380.0,0.05]
[1680432931759,0.001,28383.0,28380.0,0.05]
[1680432931958,9.31e-05,28382.0,28380.0,0.05]
[1680432932856,0.0010931,28382.0,28380.0,0.05]
[1680432933463,0.0010931,28382.0,28379.0,0.34296212]
[1680432933759,0.0010931,28382.0,28380.0,0.05]
[1680432937057,0.0010931,28382.0,28380.0,0.09226212]
[1680432943567,0.0010931,28382.0,28380.0,0.04226212]
[1680432944264,0.0010931,28382.0,28380.0,0.09226212]
[1680432946464,0.0010931,28382.0,28380.0,0.04226212]
[1680432946864,0.0010931,28382.0,28380.0,0.09226212]
[1680432954883,0.0010931,28382.0,28380.0,0.04226212]
[1680432955580,0.0010931,28382.0,28380.0,0.09226212]
[1680432956883,0.0010931,28382.0,28381.0,0.04226212]
[1680432960677,0.0010931,28382.0,28381.0,0.06339318]
[1680432960877,0.12655739,28388.0,28382.0,0.05]
[1680432961088,0.12655739,28389.0,28387.0,0.3007]
[1680432961289,0.12655739,28390.0,28387.0,0.3007]
[1680432962687,0.12655739,28389.0,28387.0,0.3007]
[1680432963092,0.027,28388.0,28387.0,0.3007]
[1680432963485,0.15355739,28390.0,28387.0,0.3007]
[1680432964090,0.027,28388.0,28387.0,0.3007]
[1680432964285,0.027,28388.0,28385.0,0.3007]
[1680432964480,0.05,28389.0,28385.0,0.3007]
[1680432964881,0.17655739,28389.0,28385.0,0.3007]
[1680432965884,0.027,28388.0,28385.0,0.3007]
[1680432966084,0.027,28388.0,28382.0,0.09225309]
[1680432966288,0.50425739,28389.0,28382.0,0.09225309]
[1680432966477,0.05,28387.0,28382.0,0.09225309]
[1680432966883,0.027,28388.0,28382.0,0.09225309]
[1680432967083,0.15355739,28388.0,28382.0,0.09225309]
[1680432967280,0.50425739,28389.0,28382.0,0.09225309]
[1680432967493,0.12655739,28388.0,28382.0,0.09225309]
[1680432967790,0.50425739,28389.0,28382.0,0.09225309]
[1680432968588,0.42725739,28389.0,28384.0,0.3007]
[1680432968787,0.027,28388.0,28385.0,0.05]
[1680432968986,0.05,28387.0,28384.0,0.3007]
[1680432969490,0.05,28388.0,28384.0,0.3007]
[1680432969890,0.077,28388.0,28384.0,0.3007]
[1680432970492,0.027,28388.0,28384.0,0.3007]
[1680432970693,0.3007,28386.0,28381.0,0.57600956]
[1680432970991,0.05,28385.0,28381.0,0.53375647]
[1680432972089,0.059,28385.0,28381.0,0.53375647]
[1680432974096,0.009,28385.0,28381.0,0.53375647]
[1680432974995,0.009,28385.0,28381.0,0.57600956]
[1680432975598,0.009,28385.0,28381.0,0.53375647]